[Event "Titled Tuesday Blitz October 11 Early 2022"]
[White "Zaloznyy, Mike"]
[Black "Namitbir Singh Walia"]
[WhiteFideId "2023075"]
[BlackFideId "35071068"]
[WhiteElo "2126"]
[BlackElo "2239"]
[Result "0-1"]
[Round "06"]
[TimeControl "180+1"]
[Date "2022.10.12"]
[WhiteClock "0:00:11"]
[BlackClock "0:00:28"]

1. e4 {[%clk 0:03:00]}  c5 {[%clk 0:02:59]} 2. a3 {[%clk 0:03:00]}  g6 {[%clk 0:02:55]} 3. Nf3 {[%clk 0:02:59]}  Bg7 {[%clk 0:02:54]} 4. Bc4 {[%clk 0:02:59]}  Nc6 {[%clk 0:02:51]} 5. O-O {[%clk 0:02:58]}  e6 {[%clk 0:02:50]} 6. Nc3 {[%clk 0:02:56]}  Nge7 {[%clk 0:02:50]} 7. Rb1 {[%clk 0:02:53]}  O-O {[%clk 0:02:47]} 8. b4 {[%clk 0:02:52]}  d5 {[%clk 0:02:46]} 9. exd5 {[%clk 0:02:43]}  exd5 {[%clk 0:02:47]} 10. Bb5 {[%clk 0:02:31]}  cxb4 {[%clk 0:02:31]} 11. axb4 {[%clk 0:02:27]}  Bg4 {[%clk 0:02:32]} 12. Bxc6 {[%clk 0:02:27]}  Nxc6 {[%clk 0:02:32]} 13. h3 {[%clk 0:02:25]}  Bf5 {[%clk 0:02:29]} 14. b5 {[%clk 0:02:22]}  Nd4 {[%clk 0:02:25]} 15. Nxd4 {[%clk 0:02:17]}  Bxd4 {[%clk 0:02:26]} 16. Qf3 {[%clk 0:02:05]}  Bxc2 {[%clk 0:02:24]} 17. Rb2 {[%clk 0:01:48]}  Be4 {[%clk 0:02:24]} 18. Nxe4 {[%clk 0:01:42]}  dxe4 {[%clk 0:02:23]} 19. Qxe4 {[%clk 0:01:43]}  Bxb2 {[%clk 0:02:23]} 20. Bxb2 {[%clk 0:01:44]}  Qxd2 {[%clk 0:02:15]} 21. Qe5 {[%clk 0:01:39]}  f6 {[%clk 0:02:12]} 22. Qe6+ {[%clk 0:01:36]}  Rf7 {[%clk 0:01:32]} 23. Bxf6 {[%clk 0:01:35]}  Qd7 {[%clk 0:01:23]} 24. Qb3 {[%clk 0:01:23]}  a5 {[%clk 0:01:08]} 25. Ba1 {[%clk 0:01:20]}  h5 {[%clk 0:01:02]} 26. Rd1 {[%clk 0:01:10]}  Qf5 {[%clk 0:01:01]} 27. Qb2 {[%clk 0:00:59]}  Kh7 {[%clk 0:01:01]} 28. b6 {[%clk 0:00:29]}  a4 {[%clk 0:00:59]} 29. Rd2 {[%clk 0:00:12]}  a3 {[%clk 0:00:59]} 30. Qc3 {[%clk 0:00:07]}  a2 {[%clk 0:00:53]} 31. Kh2 {[%clk 0:00:03]}  Qa5 {[%clk 0:00:23]} 32. g3 {[%clk 0:00:02]}  Qxc3 {[%clk 0:00:23]} 33. Bxc3 {[%clk 0:00:02]}  a1=Q {[%clk 0:00:24]} 34. Bxa1 {[%clk 0:00:02]}  Rxa1 {[%clk 0:00:22]} 35. Kg2 {[%clk 0:00:02]}  Ra6 {[%clk 0:00:22]} 36. Rd6 {[%clk 0:00:02]}  Kg7 {[%clk 0:00:21]} 37. g4 {[%clk 0:00:02]}  hxg4 {[%clk 0:00:21]} 38. hxg4 {[%clk 0:00:03]}  Ra2 {[%clk 0:00:21]} 39. Kg3 {[%clk 0:00:02]}  Raxf2 {[%clk 0:00:22]} 40. Rd7 {[%clk 0:00:01]}  Rf3+ {[%clk 0:00:20]} 41. Kg2 {[%clk 0:00:01]}  Rxd7 {[%clk 0:00:20]} 42. Kxf3 {[%clk 0:00:02]}  Rd6 {[%clk 0:00:21]} 43. Kf4 {[%clk 0:00:02]}  Rxb6 {[%clk 0:00:22]} 44. g5 {[%clk 0:00:03]}  Rb5 {[%clk 0:00:22]} 45. Kg4 {[%clk 0:00:04]}  Rf5 {[%clk 0:00:23]} 46. Kg3 {[%clk 0:00:04]}  b5 {[%clk 0:00:24]} 47. Kg4 {[%clk 0:00:05]}  b4 {[%clk 0:00:24]} 48. Kg3 {[%clk 0:00:06]}  b3 {[%clk 0:00:25]} 49. Kg4 {[%clk 0:00:07]}  b2 {[%clk 0:00:26]} 50. Kg3 {[%clk 0:00:08]}  b1=Q {[%clk 0:00:27]} 51. Kg4 {[%clk 0:00:09]}  Qg1+ {[%clk 0:00:27]} 52. Kh4 {[%clk 0:00:10]}  Rf4+ {[%clk 0:00:27]} 53. Kh3 {[%clk 0:00:10]}  Rf3+ {[%clk 0:00:28]} 54. Kh4 {[%clk 0:00:11]}  Qg3# {[%clk 0:00:28]} 0-1


[Site "https://www.chess.com"]

[Event "Titled Tuesday Blitz October 11 Early 2022"]
[White "Zhao, Jun"]
[Black "Dushyant Sharma"]
[WhiteFideId "8602522"]
[BlackFideId "25065130"]
[WhiteElo "2547"]
[BlackElo "2270"]
[Result "1-0"]
[Round "06"]
[TimeControl "180+1"]
[Date "2022.10.12"]
[WhiteClock "0:00:16"]
[BlackClock "0:00:10"]

1. Nf3 {[%clk 0:02:56]}  d5 {[%clk 0:02:59]} 2. g3 {[%clk 0:02:56]}  e6 {[%clk 0:03:00]} 3. Bg2 {[%clk 0:02:57]}  Nf6 {[%clk 0:03:00]} 4. O-O {[%clk 0:02:57]}  Be7 {[%clk 0:03:01]} 5. d4 {[%clk 0:02:57]}  O-O {[%clk 0:03:01]} 6. c3 {[%clk 0:02:57]}  Ne4 {[%clk 0:02:57]} 7. Nbd2 {[%clk 0:02:57]}  c5 {[%clk 0:02:57]} 8. Nxe4 {[%clk 0:02:52]}  dxe4 {[%clk 0:02:57]} 9. Ne5 {[%clk 0:02:53]}  f5 {[%clk 0:02:53]} 10. Be3 {[%clk 0:02:45]}  Bf6 {[%clk 0:02:48]} 11. Qb3 {[%clk 0:02:40]}  Qe7 {[%clk 0:02:26]} 12. Nc4 {[%clk 0:02:29]}  cxd4 {[%clk 0:02:23]} 13. cxd4 {[%clk 0:02:28]}  Nc6 {[%clk 0:02:22]} 14. Rfd1 {[%clk 0:02:26]}  b6 {[%clk 0:02:08]} 15. f3 {[%clk 0:01:34]}  exf3 {[%clk 0:01:48]} 16. Bxf3 {[%clk 0:01:34]}  Bb7 {[%clk 0:01:49]} 17. Rac1 {[%clk 0:00:56]}  Kh8 {[%clk 0:01:47]} 18. Qa3 {[%clk 0:00:43]}  Qxa3 {[%clk 0:01:28]} 19. Nxa3 {[%clk 0:00:43]}  Rac8 {[%clk 0:01:29]} 20. Nb5 {[%clk 0:00:44]}  Rfd8 {[%clk 0:00:54]} 21. Nxa7 {[%clk 0:00:44]}  Nxa7 {[%clk 0:00:52]} 22. Bxb7 {[%clk 0:00:44]}  Rxc1 {[%clk 0:00:51]} 23. Rxc1 {[%clk 0:00:44]}  Bxd4 {[%clk 0:00:47]} 24. Bxd4 {[%clk 0:00:42]}  Rxd4 {[%clk 0:00:48]} 25. Rc7 {[%clk 0:00:39]}  h6 {[%clk 0:00:45]} 26. Ba6 {[%clk 0:00:39]}  Ra4 {[%clk 0:00:31]} 27. Rxa7 {[%clk 0:00:39]}  Rxa2 {[%clk 0:00:31]} 28. Kf2 {[%clk 0:00:31]}  Rxb2 {[%clk 0:00:25]} 29. Bc8 {[%clk 0:00:28]}  Rb5 {[%clk 0:00:18]} 30. Bxe6 {[%clk 0:00:28]}  Re5 {[%clk 0:00:19]} 31. Bf7 {[%clk 0:00:23]}  Kh7 {[%clk 0:00:18]} 32. Rb7 {[%clk 0:00:23]}  b5 {[%clk 0:00:16]} 33. Rb6 {[%clk 0:00:23]}  g5 {[%clk 0:00:15]} 34. Bb3 {[%clk 0:00:19]}  Kg7 {[%clk 0:00:11]} 35. Bc2 {[%clk 0:00:19]}  Rc5 {[%clk 0:00:10]} 36. Bd3 {[%clk 0:00:19]}  f4 {[%clk 0:00:10]} 37. g4 {[%clk 0:00:18]}  Rc1 {[%clk 0:00:09]} 38. Rg6+ {[%clk 0:00:16]}  Kf7 {[%clk 0:00:09]} 39. Rxh6 {[%clk 0:00:16]}  Rh1 {[%clk 0:00:08]} 40. Kg2 {[%clk 0:00:16]}  Rd1 {[%clk 0:00:07]} 41. Bxb5 {[%clk 0:00:14]}  Rd5 {[%clk 0:00:06]} 42. Bc4 {[%clk 0:00:14]}  Kg7 {[%clk 0:00:05]} 43. Bxd5 {[%clk 0:00:14]}  Kxh6 {[%clk 0:00:05]} 44. Kf3 {[%clk 0:00:15]}  Kg7 {[%clk 0:00:06]} 45. Ke4 {[%clk 0:00:15]}  Kf6 {[%clk 0:00:06]} 46. Bc4 {[%clk 0:00:16]}  Kg7 {[%clk 0:00:06]} 47. Kf5 {[%clk 0:00:16]}  Kh6 {[%clk 0:00:07]} 48. Kf6 {[%clk 0:00:16]}  Kh7 {[%clk 0:00:07]} 49. Kxg5 {[%clk 0:00:16]}  Kg7 {[%clk 0:00:08]} 50. Kxf4 {[%clk 0:00:16]}  Kh8 {[%clk 0:00:08]} 51. g5 {[%clk 0:00:17]}  Kg7 {[%clk 0:00:09]} 52. Kf5 {[%clk 0:00:16]}  Kh7 {[%clk 0:00:09]} 53. g6+ {[%clk 0:00:16]}  Kh6 {[%clk 0:00:10]} 54. Kf6 {[%clk 0:00:16]}  Kh5 {[%clk 0:00:10]} 55. g7 {[%clk 0:00:16]}  Kh4 {[%clk 0:00:10]} 56. g8=Q {[%clk 0:00:16]}  Kh5 {[%clk 0:00:10]} 57. Qg5# {[%clk 0:00:16]} 1-0


[Site "https://www.chess.com"]

[Event "Titled Tuesday Blitz October 11 Early 2022"]
[White "Zilleruelo Irizarry, Diego"]
[Black "Kouskoutis, Georgios-Alexandros"]
[WhiteFideId "3101460"]
[BlackFideId "4234049"]
[WhiteElo "1998"]
[BlackElo "2187"]
[Result "0-1"]
[Round "06"]
[TimeControl "180+1"]
[Date "2022.10.12"]
[WhiteClock "0:00:17"]
[BlackClock "0:00:06"]

1. e4 {[%clk 0:03:00]}  c5 {[%clk 0:02:59]} 2. Nf3 {[%clk 0:03:00]}  g6 {[%clk 0:02:37]} 3. c3 {[%clk 0:02:58]}  Bg7 {[%clk 0:02:37]} 4. d4 {[%clk 0:02:58]}  cxd4 {[%clk 0:02:37]} 5. Nxd4 {[%clk 0:02:59]}  Nc6 {[%clk 0:02:29]} 6. Nxc6 {[%clk 0:02:59]}  bxc6 {[%clk 0:02:30]} 7. Bd3 {[%clk 0:02:58]}  Nf6 {[%clk 0:02:23]} 8. O-O {[%clk 0:02:58]}  O-O {[%clk 0:02:22]} 9. Nd2 {[%clk 0:02:57]}  d5 {[%clk 0:02:21]} 10. Re1 {[%clk 0:02:53]}  e6 {[%clk 0:02:20]} 11. e5 {[%clk 0:02:48]}  Nd7 {[%clk 0:02:20]} 12. Nf3 {[%clk 0:02:49]}  f6 {[%clk 0:01:42]} 13. exf6 {[%clk 0:02:43]}  Qxf6 {[%clk 0:01:43]} 14. Bg5 {[%clk 0:02:33]}  Qf7 {[%clk 0:01:41]} 15. Nd4 {[%clk 0:02:09]}  Qxf2+ {[%clk 0:01:12]} 16. Kh1 {[%clk 0:02:09]}  Bxd4 {[%clk 0:01:12]} 17. cxd4 {[%clk 0:02:07]}  Qxd4 {[%clk 0:01:05]} 18. Rxe6 {[%clk 0:02:05]}  Nc5 {[%clk 0:00:50]} 19. Re3 {[%clk 0:01:41]}  Bg4 {[%clk 0:00:37]} 20. Be2 {[%clk 0:01:33]}  Qxd1+ {[%clk 0:00:34]} 21. Rxd1 {[%clk 0:01:28]}  Bxe2 {[%clk 0:00:31]} 22. Rxe2 {[%clk 0:01:28]}  Ne4 {[%clk 0:00:31]} 23. Bh6 {[%clk 0:01:26]}  Nf2+ {[%clk 0:00:29]} 24. Rxf2 {[%clk 0:01:22]}  Rxf2 {[%clk 0:00:29]} 25. Rb1 {[%clk 0:01:18]}  Re8 {[%clk 0:00:26]} 26. h3 {[%clk 0:01:03]}  Ree2 {[%clk 0:00:26]} 27. Rg1 {[%clk 0:01:01]}  Rxb2 {[%clk 0:00:24]} 28. a4 {[%clk 0:01:00]}  d4 {[%clk 0:00:22]} 29. Bg5 {[%clk 0:00:56]}  c5 {[%clk 0:00:18]} 30. Be7 {[%clk 0:00:55]}  Rbc2 {[%clk 0:00:16]} 31. Bh4 {[%clk 0:00:50]}  Rfe2 {[%clk 0:00:16]} 32. Bg5 {[%clk 0:00:48]}  d3 {[%clk 0:00:15]} 33. Kh2 {[%clk 0:00:41]}  d2 {[%clk 0:00:13]} 34. Rb1 {[%clk 0:00:33]}  Re1 {[%clk 0:00:08]} 35. Rb8+ {[%clk 0:00:34]}  Kf7 {[%clk 0:00:08]} 36. Rb7+ {[%clk 0:00:30]}  Ke6 {[%clk 0:00:05]} 37. Bxd2 {[%clk 0:00:22]}  Rxd2 {[%clk 0:00:05]} 38. Rxh7 {[%clk 0:00:22]}  Ree2 {[%clk 0:00:05]} 39. Rxa7 {[%clk 0:00:17]}  Rxg2+ {[%clk 0:00:06]} 40. Kh1 {[%clk 0:00:17]}  Rge2 {[%clk 0:00:06]} 0-1


[Site "https://www.chess.com"]

[Event "Titled Tuesday Blitz October 11 Early 2022"]
[White "Zou, Chen"]
[Black "Nozdrachev, Leonid"]
[WhiteFideId "8610959"]
[BlackFideId "24113433"]
[WhiteElo "2325"]
[BlackElo "2249"]
[Result "1-0"]
[Round "06"]
[TimeControl "180+1"]
[Date "2022.10.12"]
[WhiteClock "0:01:25"]
[BlackClock "0:01:19"]

1. e4 {[%clk 0:03:00]}  c6 {[%clk 0:02:58]} 2. d4 {[%clk 0:02:59]}  d5 {[%clk 0:02:59]} 3. e5 {[%clk 0:03:00]}  Bf5 {[%clk 0:02:59]} 4. Nf3 {[%clk 0:03:00]}  e6 {[%clk 0:02:57]} 5. Be2 {[%clk 0:03:00]}  Ne7 {[%clk 0:02:58]} 6. O-O {[%clk 0:03:00]}  c5 {[%clk 0:02:57]} 7. c4 {[%clk 0:02:57]}  Nbc6 {[%clk 0:02:54]} 8. dxc5 {[%clk 0:02:56]}  dxc4 {[%clk 0:02:52]} 9. Na3 {[%clk 0:02:47]}  Nd5 {[%clk 0:02:51]} 10. Nxc4 {[%clk 0:02:22]}  Bxc5 {[%clk 0:02:50]} 11. Bg5 {[%clk 0:02:21]}  Qc7 {[%clk 0:02:46]} 12. Rc1 {[%clk 0:02:20]}  O-O {[%clk 0:02:44]} 13. Qb3 {[%clk 0:02:14]}  Rab8 {[%clk 0:02:39]} 14. Rfd1 {[%clk 0:01:56]}  h6 {[%clk 0:02:28]} 15. Bh4 {[%clk 0:01:49]}  Rfc8 {[%clk 0:02:19]} 16. Nd6 {[%clk 0:01:46]}  Bxd6 {[%clk 0:02:13]} 17. exd6 {[%clk 0:01:47]}  Qxd6 {[%clk 0:02:14]} 18. Bg3 {[%clk 0:01:47]}  Qb4 {[%clk 0:02:05]} 19. Qxb4 {[%clk 0:01:41]}  Ncxb4 {[%clk 0:02:02]} 20. Bxb8 {[%clk 0:01:41]}  Rxb8 {[%clk 0:02:02]} 21. a3 {[%clk 0:01:41]}  Nc6 {[%clk 0:02:00]} 22. Nd4 {[%clk 0:01:33]}  Nxd4 {[%clk 0:01:56]} 23. Rxd4 {[%clk 0:01:34]}  b5 {[%clk 0:01:50]} 24. Bf3 {[%clk 0:01:33]}  Nf6 {[%clk 0:01:23]} 25. Rcd1 {[%clk 0:01:26]}  Kh7 {[%clk 0:01:22]} 26. Rd8 {[%clk 0:01:26]}  Rb6 {[%clk 0:01:19]} 27. R1d6 {[%clk 0:01:25]} 1-0


[Site "https://www.chess.com"]

[Event "Titled Tuesday Blitz October 11 Early 2022"]
[White "Aarav Dengla"]
[Black "Yurovskykh, Oleksandr"]
[WhiteFideId "45059756"]
[BlackFideId "14134020"]
[WhiteElo "2257"]
[BlackElo "2303"]
[Result "1-0"]
[Round "07"]
[TimeControl "180+1"]
[Date "2022.10.12"]
[WhiteClock "0:00:31"]
[BlackClock "0:00:11"]

1. e4 {[%clk 0:02:59]}  e6 {[%clk 0:02:58]} 2. d4 {[%clk 0:02:58]}  d5 {[%clk 0:02:58]} 3. exd5 {[%clk 0:02:57]}  exd5 {[%clk 0:02:59]} 4. Nf3 {[%clk 0:02:58]}  Bd6 {[%clk 0:03:00]} 5. c4 {[%clk 0:02:58]}  Nf6 {[%clk 0:02:59]} 6. Nc3 {[%clk 0:02:56]}  O-O {[%clk 0:02:57]} 7. c5 {[%clk 0:02:55]}  Be7 {[%clk 0:02:57]} 8. b4 {[%clk 0:02:54]}  b6 {[%clk 0:02:46]} 9. a3 {[%clk 0:02:51]}  a5 {[%clk 0:02:46]} 10. Rb1 {[%clk 0:02:50]}  axb4 {[%clk 0:02:45]} 11. axb4 {[%clk 0:02:51]}  bxc5 {[%clk 0:02:45]} 12. dxc5 {[%clk 0:02:49]}  c6 {[%clk 0:02:28]} 13. Be2 {[%clk 0:02:45]}  Bg4 {[%clk 0:02:19]} 14. O-O {[%clk 0:02:35]}  Nbd7 {[%clk 0:02:19]} 15. Nd4 {[%clk 0:02:29]}  Bxe2 {[%clk 0:02:15]} 16. Qxe2 {[%clk 0:02:22]}  Rc8 {[%clk 0:02:15]} 17. Qa6 {[%clk 0:02:17]}  Qc7 {[%clk 0:02:14]} 18. Nce2 {[%clk 0:02:15]}  Ne5 {[%clk 0:01:53]} 19. Bf4 {[%clk 0:02:13]}  Nfd7 {[%clk 0:01:53]} 20. Nf5 {[%clk 0:02:03]}  Rfe8 {[%clk 0:01:51]} 21. Ned4 {[%clk 0:01:56]}  Bf8 {[%clk 0:01:32]} 22. Ra1 {[%clk 0:01:41]}  Nf3+ {[%clk 0:01:24]} 23. Nxf3 {[%clk 0:01:32]}  Qxf4 {[%clk 0:01:24]} 24. N5d4 {[%clk 0:01:33]}  Qc7 {[%clk 0:01:24]} 25. Rfe1 {[%clk 0:01:30]}  Rxe1+ {[%clk 0:01:16]} 26. Rxe1 {[%clk 0:01:31]}  g6 {[%clk 0:01:14]} 27. h4 {[%clk 0:01:23]}  Bg7 {[%clk 0:00:57]} 28. Re7 {[%clk 0:00:40]}  Kf8 {[%clk 0:00:55]} 29. Nxc6 {[%clk 0:00:37]}  Bf6 {[%clk 0:00:22]} 30. Na7 {[%clk 0:00:34]}  Bxe7 {[%clk 0:00:11]} 31. Qxc8+ {[%clk 0:00:33]}  Qxc8 {[%clk 0:00:11]} 32. Nxc8 {[%clk 0:00:34]}  Bf6 {[%clk 0:00:12]} 33. Ne1 {[%clk 0:00:32]}  Bc3 {[%clk 0:00:11]} 34. Nd3 {[%clk 0:00:31]}  Nf6 {[%clk 0:00:10]} 35. b5 {[%clk 0:00:31]}  Ke8 {[%clk 0:00:10]} 36. b6 {[%clk 0:00:28]}  Kd8 {[%clk 0:00:10]} 37. Nd6 {[%clk 0:00:28]}  Nd7 {[%clk 0:00:09]} 38. Nxf7+ {[%clk 0:00:27]}  Kc8 {[%clk 0:00:09]} 39. Ng5 {[%clk 0:00:26]}  h6 {[%clk 0:00:08]} 40. Nf7 {[%clk 0:00:26]}  Kb7 {[%clk 0:00:08]} 41. Nxh6 {[%clk 0:00:25]}  Bd4 {[%clk 0:00:07]} 42. Nf7 {[%clk 0:00:24]}  Nxc5 {[%clk 0:00:08]} 43. Nxc5+ {[%clk 0:00:25]}  Bxc5 {[%clk 0:00:09]} 44. Ne5 {[%clk 0:00:26]}  Kxb6 {[%clk 0:00:08]} 45. Nxg6 {[%clk 0:00:26]}  d4 {[%clk 0:00:08]} 46. h5 {[%clk 0:00:27]}  d3 {[%clk 0:00:07]} 47. Kf1 {[%clk 0:00:28]}  Bb4 {[%clk 0:00:06]} 48. h6 {[%clk 0:00:28]}  Bc3 {[%clk 0:00:07]} 49. h7 {[%clk 0:00:28]}  Kc5 {[%clk 0:00:07]} 50. h8=Q {[%clk 0:00:27]}  Bxh8 {[%clk 0:00:08]} 51. Nxh8 {[%clk 0:00:28]}  Kd4 {[%clk 0:00:09]} 52. Ke1 {[%clk 0:00:29]}  Kc3 {[%clk 0:00:10]} 53. Kd1 {[%clk 0:00:29]}  d2 {[%clk 0:00:10]} 54. Ng6 {[%clk 0:00:30]}  Kd3 {[%clk 0:00:11]} 55. Nf4+ {[%clk 0:00:31]} 1-0


[Site "https://www.chess.com"]

[Event "Titled Tuesday Blitz October 11 Early 2022"]
[White "Agasarov, Benik"]
[Black "Cramling Bellon, Anna"]
[WhiteFideId "13314823"]
[BlackFideId "32009232"]
[WhiteElo "2152"]
[BlackElo "1972"]
[Result "1-0"]
[Round "07"]
[TimeControl "180+1"]
[Date "2022.10.12"]
[WhiteClock "0:01:20"]
[BlackClock "0:00:01"]

1. e4 {[%clk 0:02:54]}  c5 {[%clk 0:02:56]} 2. Nf3 {[%clk 0:02:50]}  e6 {[%clk 0:02:56]} 3. d4 {[%clk 0:02:46]}  cxd4 {[%clk 0:02:57]} 4. Nxd4 {[%clk 0:02:47]}  Nf6 {[%clk 0:02:56]} 5. Nc3 {[%clk 0:02:46]}  Nc6 {[%clk 0:02:55]} 6. Nxc6 {[%clk 0:02:33]}  bxc6 {[%clk 0:02:54]} 7. e5 {[%clk 0:02:33]}  Nd5 {[%clk 0:02:55]} 8. Ne4 {[%clk 0:02:33]}  Qc7 {[%clk 0:02:54]} 9. f4 {[%clk 0:02:18]}  Qb6 {[%clk 0:02:53]} 10. c4 {[%clk 0:02:15]}  Bb4+ {[%clk 0:02:51]} 11. Ke2 {[%clk 0:02:13]}  f5 {[%clk 0:02:52]} 12. Nf2 {[%clk 0:02:10]}  Ba6 {[%clk 0:02:41]} 13. Kf3 {[%clk 0:02:01]}  Ne7 {[%clk 0:02:17]} 14. Be3 {[%clk 0:01:56]}  c5 {[%clk 0:02:14]} 15. a3 {[%clk 0:01:54]}  Qc6+ {[%clk 0:02:13]} 16. Kg3 {[%clk 0:01:45]}  Ba5 {[%clk 0:01:57]} 17. b4 {[%clk 0:01:35]}  cxb4 {[%clk 0:01:13]} 18. axb4 {[%clk 0:01:34]}  Bxb4 {[%clk 0:01:13]} 19. Qa4 {[%clk 0:01:34]}  Bxc4 {[%clk 0:00:22]} 20. Qxc6 {[%clk 0:01:31]}  dxc6 {[%clk 0:00:21]} 21. Bxc4 {[%clk 0:01:32]}  c5 {[%clk 0:00:18]} 22. Bxe6 {[%clk 0:01:31]}  g6 {[%clk 0:00:14]} 23. Nd3 {[%clk 0:01:31]}  Bc3 {[%clk 0:00:14]} 24. Ra3 {[%clk 0:01:30]}  Bb4 {[%clk 0:00:11]} 25. Nxb4 {[%clk 0:01:29]}  cxb4 {[%clk 0:00:12]} 26. Rxa7 {[%clk 0:01:29]}  Rxa7 {[%clk 0:00:10]} 27. Bxa7 {[%clk 0:01:30]}  Nc6 {[%clk 0:00:11]} 28. Bc5 {[%clk 0:01:28]}  h5 {[%clk 0:00:05]} 29. Rb1 {[%clk 0:01:26]}  Rh7 {[%clk 0:00:05]} 30. Bd5 {[%clk 0:01:25]}  h4+ {[%clk 0:00:04]} 31. Kf3 {[%clk 0:01:24]}  Rc7 {[%clk 0:00:02]} 32. Bxc6+ {[%clk 0:01:24]}  Rxc6 {[%clk 0:00:03]} 33. Bxb4 {[%clk 0:01:25]}  g5 {[%clk 0:00:02]} 34. fxg5 {[%clk 0:01:25]}  Rc4 {[%clk 0:00:03]} 35. Bd2 {[%clk 0:01:23]}  Rd4 {[%clk 0:00:02]} 36. Bf4 {[%clk 0:01:23]}  Rd3+ {[%clk 0:00:02]} 37. Ke2 {[%clk 0:01:23]}  Rd4 {[%clk 0:00:02]} 38. g3 {[%clk 0:01:24]}  h3 {[%clk 0:00:02]} 39. g6 {[%clk 0:01:20]}  Re4+ {[%clk 0:00:02]} 40. Kf3 {[%clk 0:01:20]}  Kf8 {[%clk 0:00:03]} 41. Rb7 {[%clk 0:01:19]}  Kg8 {[%clk 0:00:03]} 42. g4 {[%clk 0:01:19]}  Rc4 {[%clk 0:00:02]} 43. gxf5 {[%clk 0:01:19]}  Rc3+ {[%clk 0:00:02]} 44. Kg4 {[%clk 0:01:20]}  Kh8 {[%clk 0:00:01]} 45. f6 {[%clk 0:01:20]}  Rc8 {[%clk 0:00:01]} 46. e6 {[%clk 0:01:20]} 1-0


[Site "https://www.chess.com"]

[Event "Titled Tuesday Blitz October 11 Early 2022"]
[White "Alexikov, Alexander"]
[Black "Shapiro, Daniel"]
[WhiteFideId "14103958"]
[BlackFideId "2001780"]
[WhiteElo "2222"]
[BlackElo "2223"]
[Result "0-1"]
[Round "07"]
[TimeControl "180+1"]
[Date "2022.10.12"]
[WhiteClock "0:00:02"]
[BlackClock "0:00:31"]

1. e4 {[%clk 0:03:00]}  c5 {[%clk 0:02:59]} 2. Nf3 {[%clk 0:03:00]}  e6 {[%clk 0:02:59]} 3. Nc3 {[%clk 0:02:58]}  a6 {[%clk 0:02:58]} 4. d4 {[%clk 0:02:58]}  cxd4 {[%clk 0:02:59]} 5. Nxd4 {[%clk 0:02:58]}  Qc7 {[%clk 0:02:59]} 6. Bd3 {[%clk 0:02:57]}  Bd6 {[%clk 0:02:55]} 7. g3 {[%clk 0:02:47]}  Nc6 {[%clk 0:02:40]} 8. Nb3 {[%clk 0:02:41]}  Be7 {[%clk 0:02:32]} 9. f4 {[%clk 0:02:39]}  d6 {[%clk 0:02:31]} 10. a3 {[%clk 0:02:32]}  h5 {[%clk 0:02:27]} 11. Be3 {[%clk 0:02:29]}  Nf6 {[%clk 0:02:25]} 12. h3 {[%clk 0:02:27]}  b5 {[%clk 0:02:25]} 13. Qe2 {[%clk 0:02:25]}  Bb7 {[%clk 0:02:24]} 14. Nd1 {[%clk 0:02:15]}  Na5 {[%clk 0:02:18]} 15. Nxa5 {[%clk 0:02:11]}  Qxa5+ {[%clk 0:02:17]} 16. Bd2 {[%clk 0:02:10]}  Qb6 {[%clk 0:02:16]} 17. Nf2 {[%clk 0:02:10]}  e5 {[%clk 0:01:53]} 18. O-O-O {[%clk 0:01:59]}  O-O-O {[%clk 0:01:50]} 19. Kb1 {[%clk 0:01:53]}  Kb8 {[%clk 0:01:49]} 20. Rhf1 {[%clk 0:01:20]}  Bc6 {[%clk 0:01:48]} 21. Qe1 {[%clk 0:01:12]}  Rc8 {[%clk 0:01:42]} 22. Ba5 {[%clk 0:01:09]}  Qb7 {[%clk 0:01:42]} 23. Bb4 {[%clk 0:01:09]}  Rhe8 {[%clk 0:01:32]} 24. Qe2 {[%clk 0:01:08]}  d5 {[%clk 0:01:25]} 25. fxe5 {[%clk 0:00:54]}  Nd7 {[%clk 0:01:03]} 26. exd5 {[%clk 0:00:47]}  Bxd5 {[%clk 0:00:58]} 27. Qxh5 {[%clk 0:00:21]}  Bxb4 {[%clk 0:00:48]} 28. axb4 {[%clk 0:00:20]}  Nxe5 {[%clk 0:00:40]} 29. Be4 {[%clk 0:00:12]}  Bxe4 {[%clk 0:00:36]} 30. Nxe4 {[%clk 0:00:11]}  Qxe4 {[%clk 0:00:36]} 31. Rd2 {[%clk 0:00:09]}  Qxb4 {[%clk 0:00:34]} 32. Rd5 {[%clk 0:00:02]}  Nc4 {[%clk 0:00:31]} 0-1


[Site "https://www.chess.com"]

[Event "Titled Tuesday Blitz October 11 Early 2022"]
[White "Asavasaetakul, Chawit"]
[Black "Ianov, Viktor"]
[WhiteFideId "6204856"]
[BlackFideId "14102730"]
[WhiteElo "1919"]
[BlackElo "2152"]
[Result "0-1"]
[Round "07"]
[TimeControl "180+1"]
[Date "2022.10.12"]
[WhiteClock "0:00:15"]
[BlackClock "0:00:15"]

1. e4 {[%clk 0:03:00]}  d6 {[%clk 0:02:55]} 2. d4 {[%clk 0:03:00]}  Nf6 {[%clk 0:02:54]} 3. Nc3 {[%clk 0:03:00]}  c6 {[%clk 0:02:54]} 4. Nf3 {[%clk 0:02:58]}  Bg4 {[%clk 0:02:52]} 5. Bc4 {[%clk 0:02:55]}  e6 {[%clk 0:02:51]} 6. h3 {[%clk 0:02:53]}  Bh5 {[%clk 0:02:50]} 7. Qe2 {[%clk 0:02:52]}  Be7 {[%clk 0:02:47]} 8. e5 {[%clk 0:02:50]}  Nd5 {[%clk 0:02:46]} 9. Ne4 {[%clk 0:02:49]}  dxe5 {[%clk 0:02:44]} 10. dxe5 {[%clk 0:02:50]}  Nd7 {[%clk 0:02:41]} 11. Nd6+ {[%clk 0:02:14]}  Bxd6 {[%clk 0:02:40]} 12. exd6 {[%clk 0:02:15]}  O-O {[%clk 0:02:39]} 13. Bb3 {[%clk 0:02:06]}  Nc5 {[%clk 0:02:37]} 14. O-O {[%clk 0:02:02]}  Qxd6 {[%clk 0:02:35]} 15. Rd1 {[%clk 0:02:03]}  Qc7 {[%clk 0:02:30]} 16. c4 {[%clk 0:01:59]}  Nf6 {[%clk 0:02:16]} 17. Be3 {[%clk 0:01:53]}  b6 {[%clk 0:02:04]} 18. Bc2 {[%clk 0:01:48]}  a5 {[%clk 0:02:02]} 19. a3 {[%clk 0:01:43]}  a4 {[%clk 0:02:01]} 20. Bd4 {[%clk 0:01:34]}  Rfd8 {[%clk 0:01:53]} 21. Be5 {[%clk 0:01:25]}  Qe7 {[%clk 0:01:48]} 22. Qe3 {[%clk 0:01:14]}  h6 {[%clk 0:01:34]} 23. g4 {[%clk 0:01:10]}  Bg6 {[%clk 0:01:33]} 24. Bxg6 {[%clk 0:01:10]}  fxg6 {[%clk 0:01:33]} 25. Nd4 {[%clk 0:01:10]}  Rac8 {[%clk 0:01:27]} 26. Re1 {[%clk 0:01:07]}  g5 {[%clk 0:01:15]} 27. Rad1 {[%clk 0:01:04]}  Qf7 {[%clk 0:01:03]} 28. Kg2 {[%clk 0:00:50]}  Rd7 {[%clk 0:00:56]} 29. Rd2 {[%clk 0:00:20]}  Rcd8 {[%clk 0:00:55]} 30. Red1 {[%clk 0:00:20]}  Rc8 {[%clk 0:00:50]} 31. Qf3 {[%clk 0:00:20]}  Nfe4 {[%clk 0:00:41]} 32. Qxf7+ {[%clk 0:00:19]}  Kxf7 {[%clk 0:00:38]} 33. Re2 {[%clk 0:00:20]}  Nd6 {[%clk 0:00:33]} 34. Nf3 {[%clk 0:00:18]}  Nxc4 {[%clk 0:00:24]} 35. Bd4 {[%clk 0:00:17]}  Rcd8 {[%clk 0:00:20]} 36. Rc2 {[%clk 0:00:17]}  b5 {[%clk 0:00:19]} 37. Kf1 {[%clk 0:00:14]}  Kg8 {[%clk 0:00:16]} 38. Ke1 {[%clk 0:00:13]}  Nb3 {[%clk 0:00:16]} 39. Rc3 {[%clk 0:00:11]}  Nxd4 {[%clk 0:00:15]} 40. Nxd4 {[%clk 0:00:11]}  Rxd4 {[%clk 0:00:15]} 41. Rxd4 {[%clk 0:00:11]}  Rxd4 {[%clk 0:00:15]} 42. Rf3 {[%clk 0:00:12]}  e5 {[%clk 0:00:15]} 43. Rc3 {[%clk 0:00:12]}  e4 {[%clk 0:00:15]} 44. Ke2 {[%clk 0:00:12]}  Rd3 {[%clk 0:00:15]} 45. Rxd3 {[%clk 0:00:12]}  exd3+ {[%clk 0:00:15]} 46. Kxd3 {[%clk 0:00:13]}  Nxb2+ {[%clk 0:00:15]} 47. Kc3 {[%clk 0:00:14]}  Nc4 {[%clk 0:00:15]} 48. Kb4 {[%clk 0:00:15]}  Kf7 {[%clk 0:00:15]} 0-1


[Site "https://www.chess.com"]